fUST/lending_fUST_20250705
["ID","MTS","AMOUNT","RATE_DAILY","PERIOD"]
[369802998,1751728257580,-460.0,0.00020547,2]
[369802999,1751728257590,-493.35,0.00020547,2]
[369803000,1751728257600,-460.0,0.00020547,2]
[369803001,1751728257610,-5891.46,0.00020547,2]
[369803002,1751728257620,-1568.05,0.00020547,2]
[369803003,1751728257630,-843.99,0.00020547,2]
[369803004,1751728257639,-515.67,0.00020547,2]
[369803005,1751728257649,-1320.23,0.00020547,2]
[369803006,1751728257659,-460.0,0.00020547,2]
[369803007,1751728257668,-460.0,0.00020547,2]
[369803008,1751728257678,-746.4,0.00020547,2]
[369803009,1751728257688,-460.0,0.00020547,2]
[369803010,1751728257698,-460.0,0.00020547,2]
[369803011,1751728257707,-1048.55,0.00020547,2]
[369803012,1751728257717,-961.57,0.00020547,2]
[369803013,1751728257727,-460.0,0.00020547,2]
[369803014,1751728257737,-460.0,0.00020547,2]
[369803015,1751728257748,-1389.1,0.00020547,2]
[369803016,1751728257757,-540.95,0.00020547,2]
[369803017,1751728257766,-555.14,0.00020547,2]
[369803018,1751728257776,-460.0,0.00020547,2]
[369803019,1751728257786,-224.06,0.00020547,2]
[369803020,1751728257796,-479.88568797,0.00020547,2]
[369803021,1751728257806,-460.0,0.00020547,2]
[369803022,1751728257819,-460.0,0.00020547,2]
[369803023,1751728257830,-460.0,0.00020547,2]
[369803024,1751728257841,-507.25,0.00020547,2]
[369803025,1751728257851,-460.0,0.00020547,2]
[369803026,1751728257861,-2127.43,0.00020547,2]
[369803027,1751728257872,-482.52,0.00020547,2]
[369803028,1751728257881,-516.28,0.00020547,2]
[369803029,1751728257891,-460.0,0.00020547,2]
[369803030,1751728257901,-2967.2,0.00020547,2]
[369803031,1751728257910,-460.0,0.00020547,2]
[369803032,1751728257920,-460.0,0.00020547,2]
[369803033,1751728257929,-168.7,0.00020547,2]
[369803034,1751728257939,-460.0,0.00020547,2]
[369803035,1751728257949,-460.0,0.00020547,2]
[369803036,1751728257958,-460.0,0.00020547,2]
[369803037,1751728257968,-1831.94,0.00020547,2]
[369803038,1751728257977,-460.0,0.00020547,2]
[369803039,1751728257987,-1837.2,0.00020547,2]
[369803040,1751728257996,-647.19,0.00020547,2]
[369803041,1751728258006,-4472.86,0.00020547,2]
[369803042,1751728258015,-563.14,0.00020547,2]
[369803043,1751728258025,-1172.33,0.00020547,2]
[369803044,1751728258035,-460.0,0.00020547,2]
[369803045,1751728258044,-460.0,0.00020547,2]
[369803046,1751728258054,-460.0,0.00020547,2]
[369803047,1751728258063,-761.67,0.00020547,2]
[369803048,1751728258072,-925.15,0.00020547,2]
[369803049,1751728258082,-460.0,0.00020547,2]
[369803050,1751728258091,-2892.85,0.00020547,2]
[369803051,1751728258101,-570.44,0.00020547,2]
[369803052,1751728258110,-734.31,0.00020547,2]
[369803053,1751728258119,-460.0,0.00020547,2]
[369803054,1751728258129,-966.89,0.00020547,2]
[369803055,1751728258140,-460.0,0.00020547,2]
[369803056,1751728258150,-592.29,0.00020547,2]
[369803057,1751728258159,-460.0,0.00020547,2]
[369803058,1751728258169,-232.49,0.00020547,2]
[369803059,1751728258178,-460.0,0.00020547,2]
[369803060,1751728258187,-460.0,0.00020547,2]
[369803061,1751728258196,-1002.98,0.00020547,2]
[369803062,1751728258206,-3321.82,0.00020547,2]
[369803063,1751728258215,-460.0,0.00020547,2]
[369803064,1751728258225,-913.47,0.00020547,2]
[369803065,1751728258234,-460.0,0.00020547,2]
[369803066,1751728258243,-460.0,0.00020547,2]
[369803067,1751728258253,-1667.94,0.00020547,2]
[369803068,1751728258262,-2089.01,0.00020547,2]
[369803069,1751728258272,-460.0,0.00020547,2]
[369803070,1751728258281,-829.18,0.00020547,2]
[369803071,1751728258290,-460.0,0.00020547,2]
[369803072,1751728258300,-160.71,0.00020547,2]
[369803073,1751728258309,-7380.19,0.00020547,2]
[369803074,1751728258319,-460.0,0.00020547,2]
[369803075,1751728258328,-3405.3,0.00020547,2]
[369803076,1751728258338,-1123.76,0.00020547,2]
[369803077,1751728258347,-460.0,0.00020547,2]
[369803078,1751728258357,-1550.9283844,0.00020547,2]
[369803079,1751728258382,-780.3516156,0.00020547,2]
[369803080,1751728258392,-1174.15,0.00020547,2]
[369803081,1751728258402,-460.0,0.00020547,2]
[369803082,1751728258411,-771.32,0.00020547,2]
[369803083,1751728258420,-3045.74,0.00020547,2]
[369803084,1751728258430,-584.13,0.00020547,2]
[369803085,1751728258443,-612.38,0.00020547,2]
[369803086,1751728258452,-1059.14,0.00020547,2]
[369803087,1751728258462,-8034.08,0.00020547,2]
[369803088,1751728258471,-460.0,0.00020547,2]
[369803089,1751728258480,-625.41,0.00020547,2]
[369803090,1751728258491,-614.67,0.00020547,2]
[369803091,1751728258500,-1363.67,0.00020547,2]
[369803092,1751728258509,-917.21,0.00020547,2]
[369803093,1751728258520,-1778.82,0.00020547,2]
[369803094,1751728258530,-460.0,0.00020547,2]
[369803095,1751728258539,-1172.89,0.00020547,2]
[369803096,1751728258548,-722.29,0.00020547,2]
[369803097,1751728258560,-509.0,0.00020568,2]
[369803098,1751728258570,-1500.0,0.00020568,2]
[369803099,1751728258579,-1500.0,0.00020568,2]
[369803100,1751728258589,-1500.0,0.00020568,2]
[369803101,1751728258599,-1000.0,0.00020568,2]
[369803102,1751728258609,-4935.62,0.000206,2]
[369803103,1751728258618,-350.0,0.00020606,4]
[369803104,1751728258627,-178.336,0.00020608,2]
[369803105,1751728258637,-150.0,0.00020636,2]
[369803106,1751728258646,-967.0,0.00020636,2]
[369803107,1751728258656,-2152.0,0.00020636,2]
[369803108,1751728258666,-646.0,0.00020636,2]
[369803109,1751728258675,-406.0,0.00020636,2]
[369803110,1751728258684,-476.0,0.00020717,2]
[369803111,1751728258693,-2408.40498593,0.00020728,3]
[369803112,1751728258702,-172.838055,0.00020734,2]
[369803113,1751728258712,-350.0,0.00020816,4]
[369803114,1751728258722,-151.0,0.00020821,2]
[369803115,1751728258731,-460.0,0.00020821,2]
[369803116,1751728258741,-460.0,0.00020821,2]
[369803117,1751728258751,-460.0,0.00020821,2]
[369803118,1751728258760,-460.0,0.00020821,2]
[369803119,1751728258770,-460.0,0.00020821,2]
[369803120,1751728258779,-460.0,0.00020821,2]
[369803121,1751728258788,-151.0,0.00020821,2]
[369803122,1751728258799,-460.0,0.00020821,2]
[369803123,1751728258808,-156.827736,0.00020821,2]
[369803124,1751728258818,-156.827736,0.00020821,2]
[369803125,1751728258827,-460.0,0.00020821,2]
[369803126,1751728258836,-460.0,0.00020821,2]
[369803127,1751728258848,-460.0,0.00020821,2]
[369803128,1751728258857,-460.0,0.00020821,2]
[369803129,1751728259019,-460.0,0.00020821,2]
[369803130,1751728259029,-460.0,0.00020821,2]
[369803131,1751728259039,-460.0,0.00020821,2]
[369803132,1751728259049,-468.87,0.00020821,2]
[369803133,1751728259058,-556.22,0.00020821,2]
[369803134,1751728259067,-842.32,0.00020821,2]
[369803135,1751728259077,-460.0,0.00020821,2]
[369803136,1751728259086,-460.0,0.00020821,2]
[369803137,1751728259096,-279.54,0.00020821,2]
[369803138,1751728259105,-1198.12,0.00020821,2]
[369803139,1751728259114,-460.0,0.00020821,2]
[369803140,1751728259124,-460.0,0.00020821,2]
[369803141,1751728259134,-1385.11,0.00020821,2]
[369803142,1751728259143,-460.0,0.00020821,2]
[369803143,1751728259152,-547.64,0.00020821,2]
[369803144,1751728259162,-548.64,0.00020821,2]
[369803145,1751728259171,-460.0,0.00020821,2]
[369803146,1751728259180,-915.95,0.00020821,2]
[369803147,1751728259190,-460.0,0.00020821,2]
[369803148,1751728259199,-460.0,0.00020821,2]
[369803149,1751728259209,-460.0,0.00020821,2]
[369803150,1751728259218,-460.0,0.00020821,2]
[369803151,1751728259227,-460.0,0.00020821,2]
[369803152,1751728259236,-460.0,0.00020821,2]
[369803153,1751728259246,-460.0,0.00020821,2]
[369803154,1751728259255,-460.0,0.00020821,2]
[369803155,1751728259265,-460.0,0.00020821,2]
[369803156,1751728259274,-460.0,0.00020821,2]
[369803157,1751728259284,-460.0,0.00020821,2]
[369803158,1751728259294,-473.71,0.00020821,2]
[369803159,1751728259303,-460.0,0.00020821,2]
[369803160,1751728259312,-544.23,0.00020821,2]
[369803161,1751728259322,-460.0,0.00020821,2]
[369803162,1751728259331,-460.0,0.00020821,2]
[369803163,1751728259340,-460.0,0.00020821,2]
[369803164,1751728259349,-460.0,0.00020821,2]
[369803165,1751728259359,-460.0,0.00020821,2]
[369803166,1751728259368,-640.81,0.00020821,2]
[369803167,1751728259377,-460.0,0.00020821,2]
[369803168,1751728259387,-460.0,0.00020821,2]
[369803169,1751728259397,-1173.15,0.00020821,2]
[369803170,1751728259406,-511.43,0.00020821,2]
[369803171,1751728259415,-829.08,0.00020821,2]
[369803172,1751728259425,-818.45,0.00020821,2]
[369803173,1751728259435,-460.0,0.00020821,2]
[369803174,1751728259448,-460.0,0.00020821,2]
[369803175,1751728259458,-460.0,0.00020821,2]
[369803176,1751728259467,-460.0,0.00020821,2]
[369803177,1751728259477,-460.0,0.00020821,2]
[369803178,1751728259487,-460.0,0.00020821,2]
[369803179,1751728259496,-460.0,0.00020821,2]
[369803180,1751728259506,-460.0,0.00020821,2]
[369803181,1751728259516,-605.44,0.00020821,2]
[369803182,1751728259526,-460.0,0.00020821,2]
[369803183,1751728259535,-477.38,0.00020821,2]
[369803184,1751728259544,-471.86839688,0.00020821,2]
[369803185,1751728259554,-460.0,0.00020821,2]
[369803186,1751728259564,-460.0,0.00020821,2]
[369803187,1751728259573,-460.0,0.00020821,2]
[369803188,1751728259583,-460.0,0.00020821,2]
[369803189,1751728259592,-460.0,0.00020821,2]
[369803190,1751728259601,-1746.47,0.00020821,2]
[369803191,1751728259611,-475.72981807,0.00020821,2]
[369803192,1751728259620,-460.0,0.00020821,2]
[369803193,1751728259629,-460.0,0.00020821,2]
[369803194,1751728259638,-460.0,0.00020821,2]
[369803195,1751728259647,-1036.02,0.00020821,2]
[369803196,1751728259657,-662.47,0.00020821,2]
[369803197,1751728259666,-460.0,0.00020821,2]
[369803198,1751728259675,-3267.76,0.00020821,2]
[369803199,1751728259685,-2133.56,0.00020821,2]
[369803200,1751728259694,-3079.9,0.00020821,2]
[369803201,1751728259704,-460.0,0.00020821,2]
[369803202,1751728259713,-736.05,0.00020821,2]
[369803203,1751728259723,-2623.93,0.00020821,2]
[369803204,1751728259732,-460.0,0.00020821,2]
[369803205,1751728259742,-460.0,0.00020821,2]
[369803206,1751728259751,-5899.19,0.00020821,2]
[369803207,1751728259760,-1275.43,0.00020821,2]
[369803208,1751728259769,-1685.45,0.00020821,2]
[369803209,1751728259779,-460.0,0.00020821,2]
[369803210,1751728259788,-460.0,0.00020821,2]
[369803211,1751728259798,-460.0,0.00020821,2]
[369803212,1751728259808,-604.25,0.00020821,2]
[369803213,1751728259817,-460.0,0.00020821,2]
[369803214,1751728259827,-493.35,0.00020821,2]
[369803215,1751728259836,-460.0,0.00020821,2]
[369803216,1751728259845,-5891.46,0.00020821,2]
[369803217,1751728259854,-1568.05,0.00020821,2]
[369803218,1751728259864,-843.99,0.00020821,2]
[369803219,1751728259873,-515.67,0.00020821,2]
[369803220,1751728259883,-1320.23,0.00020821,2]
[369803221,1751728259892,-460.0,0.00020821,2]
[369803222,1751728259901,-460.0,0.00020821,2]
[369803223,1751728259911,-746.4,0.00020821,2]
[369803224,1751728259920,-460.0,0.00020821,2]
[369803225,1751728259930,-460.0,0.00020821,2]
[369803226,1751728259939,-1048.55,0.00020821,2]
[369803227,1751728259948,-961.57,0.00020821,2]
[369803228,1751728259958,-460.0,0.00020821,2]
[369803229,1751728259968,-460.0,0.00020821,2]
[369803230,1751728259978,-1389.1,0.00020821,2]
[369803231,1751728259987,-540.95,0.00020821,2]
[369803232,1751728259996,-555.14,0.00020821,2]
[369803233,1751728260006,-460.0,0.00020821,2]
[369803234,1751728260015,-460.0,0.00020821,2]
[369803235,1751728260025,-460.0,0.00020821,2]
[369803236,1751728260035,-460.0,0.00020821,2]
[369803237,1751728260045,-507.25,0.00020821,2]
[369803238,1751728260055,-460.0,0.00020821,2]
[369803239,1751728260065,-2127.43,0.00020821,2]
[369803240,1751728260075,-482.52,0.00020821,2]
[369803241,1751728260085,-516.28,0.00020821,2]
[369803242,1751728260095,-460.0,0.00020821,2]
[369803243,1751728260106,-2967.2,0.00020821,2]
[369803244,1751728260116,-460.0,0.00020821,2]
[369803245,1751728260126,-460.0,0.00020821,2]
[369803246,1751728260135,-460.0,0.00020821,2]
[369803247,1751728260144,-460.0,0.00020821,2]
[369803248,1751728260154,-460.0,0.00020821,2]
[369803249,1751728260164,-1831.94,0.00020821,2]
[369803250,1751728260173,-460.0,0.00020821,2]
[369803251,1751728260183,-1837.2,0.00020821,2]
[369803252,1751728260193,-647.19,0.00020821,2]
[369803253,1751728260202,-4472.86,0.00020821,2]
[369803254,1751728260212,-1172.33,0.00020821,2]
[369803255,1751728260221,-460.0,0.00020821,2]
[369803256,1751728260231,-460.0,0.00020821,2]
[369803257,1751728260240,-460.0,0.00020821,2]
[369803258,1751728260249,-761.67,0.00020821,2]
[369803259,1751728260259,-925.15,0.00020821,2]
[369803260,1751728260268,-460.0,0.00020821,2]
[369803261,1751728260278,-2892.85,0.00020821,2]
[369803262,1751728260287,-570.44,0.00020821,2]
[369803263,1751728260297,-734.31,0.00020821,2]
[369803264,1751728260307,-460.0,0.00020821,2]
[369803265,1751728260316,-966.89,0.00020821,2]
[369803266,1751728260327,-460.0,0.00020821,2]
[369803267,1751728260337,-592.29,0.00020821,2]
[369803268,1751728260347,-460.0,0.00020821,2]
[369803269,1751728260357,-460.0,0.00020821,2]
[369803270,1751728260366,-460.0,0.00020821,2]
[369803271,1751728260375,-1002.98,0.00020821,2]
[369803272,1751728260385,-3321.82,0.00020821,2]
[369803273,1751728260394,-460.0,0.00020821,2]
[369803274,1751728260404,-913.47,0.00020821,2]
[369803275,1751728260414,-460.0,0.00020821,2]
[369803276,1751728260423,-460.0,0.00020821,2]
[369803277,1751728260434,-1667.94,0.00020821,2]
[369803278,1751728260447,-2089.01,0.00020821,2]
[369803279,1751728260458,-460.0,0.00020821,2]
[369803280,1751728260467,-829.18,0.00020821,2]
[369803281,1751728260478,-460.0,0.00020821,2]
[369803282,1751728260488,-7380.19,0.00020821,2]
[369803283,1751728260498,-460.0,0.00020821,2]
[369803284,1751728260507,-3405.3,0.00020821,2]
[369803285,1751728260517,-1123.76,0.00020821,2]
[369803286,1751728260527,-460.0,0.00020821,2]
[369803287,1751728260537,-2331.28,0.00020821,2]
[369803288,1751728260547,-1174.15,0.00020821,2]
[369803289,1751728260556,-460.0,0.00020821,2]
[369803290,1751728260565,-771.32,0.00020821,2]
[369803291,1751728260575,-3045.74,0.00020821,2]
[369803292,1751728260584,-584.13,0.00020821,2]
[369803293,1751728260593,-612.38,0.00020821,2]
[369803294,1751728260602,-1059.14,0.00020821,2]
[369803295,1751728260613,-460.0,0.00020821,2]
[369803296,1751728260622,-8034.08,0.00020821,2]
[369803297,1751728260631,-625.41,0.00020821,2]
[369803298,1751728260640,-614.67,0.00020821,2]
[369803299,1751728260649,-1363.67,0.00020821,2]
[369803300,1751728260658,-917.21,0.00020821,2]
[369803301,1751728260667,-1778.82,0.00020821,2]
[369803302,1751728260676,-460.0,0.00020821,2]
[369803303,1751728260686,-1172.89,0.00020821,2]
[369803304,1751728260696,-722.29,0.00020821,2]
[369803305,1751728260705,-160.53445,0.00020851,2]
[369803306,1751728260715,-1014.84806918,0.00020868,2]
[369803307,1751728260725,-500.0,0.00020868,2]
[369803308,1751728260734,-181.479958,0.00020869,2]
[369803309,1751728260743,-2408.40498593,0.00020934,4]
[369803310,1751728260753,-476.0,0.00020936,2]
[369803311,1751728260763,-310.0,0.00020964,2]
[369803312,1751728260772,-181.479958,0.00020965,2]
[369803313,1751728260782,-168.82734034,0.00020986,2]
[369803314,1751728260791,-159.8722378,0.00020986,2]
[369803315,1751728260801,-11718.11738688,0.00021,2]
[369803316,1751728260810,-10000.0,0.00021,2]
[369803317,1751728260819,-500.0,0.00021,2]
[369803318,1751728260828,-3000.0,0.00021,2]
[369803319,1751728260838,-156.827736,0.00021,2]
[369803320,1751728260847,-156.827736,0.00021,2]
[369803321,1751728260856,-745.25,0.00021,2]
[369803322,1751728260866,-3000.0,0.0002101,2]
[369803323,1751728260875,-3000.0,0.0002102,2]
[369803324,1751728260884,-350.0,0.00021025,4]
[369803325,1751728260894,-3000.0,0.0002103,2]
[369803326,1751728260903,-172.838055,0.00021035,2]
[369803327,1751728260912,-3000.0,0.0002104,2]
[369803328,1751728260921,-3000.0,0.0002105,2]
[369803329,1751728260930,-151.0,0.0002105,2]
[369803330,1751728260940,-3000.0,0.0002106,2]
[369803331,1751728260949,-181.479958,0.0002106,2]
[369803332,1751728260958,-3000.0,0.0002107,2]
[369803333,1751728260968,-3000.0,0.0002108,2]
[369803334,1751728260978,-3000.0,0.0002109,2]
[369803335,1751728260987,-151.0,0.00021095,2]
[369803336,1751728260996,-460.0,0.00021095,2]
[369803337,1751728261006,-296.42440547,0.00021095,2]
[369803338,1751728261015,-411.46833398,0.00021095,2]
[369803339,1751728261025,-460.0,0.00021095,2]
[369803340,1751728261034,-460.0,0.00021095,2]
[369803341,1751728261043,-151.0,0.00021095,2]
[369803342,1751728261053,-460.0,0.00021095,2]
[369803343,1751728261062,-156.827736,0.00021095,2]
[369803344,1751728261072,-156.827736,0.00021095,2]
[369803345,1751728261081,-460.0,0.00021095,2]
[369803346,1751728261090,-460.0,0.00021095,2]
[369803347,1751728261100,-460.0,0.00021095,2]
[369803348,1751728261109,-460.0,0.00021095,2]
[369803349,1751728261119,-460.0,0.00021095,2]
[369803350,1751728261128,-165.42250816,0.00021095,2]
[369803351,1751728261138,-468.87,0.00021095,2]
[369803352,1751728261147,-556.22,0.00021095,2]
[369803353,1751728261158,-842.32,0.00021095,2]
[369803354,1751728261167,-513.12105307,0.00021095,2]
[369803355,1751728261176,-460.0,0.00021095,2]
[369803356,1751728261186,-1198.12,0.00021095,2]
[369803357,1751728261195,-460.0,0.00021095,2]
[369803358,1751728261204,-460.0,0.00021095,2]
[369803359,1751728261213,-1385.11,0.00021095,2]
[369803360,1751728261223,-460.0,0.00021095,2]
[369803361,1751728261232,-547.64,0.00021095,2]
[369803362,1751728261242,-548.64,0.00021095,2]
[369803363,1751728261251,-460.0,0.00021095,2]
[369803364,1751728261261,-915.95,0.00021095,2]
[369803365,1751728261271,-460.0,0.00021095,2]
[369803366,1751728261280,-460.0,0.00021095,2]
[369803367,1751728261290,-460.0,0.00021095,2]
[369803368,1751728261300,-460.0,0.00021095,2]
[369803369,1751728261310,-460.0,0.00021095,2]
[369803370,1751728261319,-460.0,0.00021095,2]
[369803371,1751728261329,-460.0,0.00021095,2]
[369803372,1751728261338,-460.0,0.00021095,2]
[369803373,1751728261347,-460.0,0.00021095,2]
[369803374,1751728261356,-473.71,0.00021095,2]
[369803375,1751728261366,-365.71746384,0.00021095,2]
[369803376,1751728261375,-544.23,0.00021095,2]
[369803377,1751728261384,-454.17120085,0.00021095,2]
[369803378,1751728261393,-460.0,0.00021095,2]
[369803379,1751728261402,-410.60009939,0.00021095,2]
[369803380,1751728261411,-429.59,0.00021095,2]
[369803381,1751728261421,-460.0,0.00021095,2]
[369803382,1751728261430,-640.81,0.00021095,2]
[369803383,1751728261439,-571.34,0.00021095,2]
[369803384,1751728261448,-460.0,0.00021095,2]
[369803385,1751728261460,-1173.15,0.00021095,2]
[369803386,1751728261470,-511.43,0.00021095,2]
[369803387,1751728261479,-829.08,0.00021095,2]
[369803388,1751728261489,-818.45,0.00021095,2]
[369803389,1751728261499,-376.02860296,0.00021095,2]
[369803390,1751728261508,-460.0,0.00021095,2]
[369803391,1751728261518,-460.0,0.00021095,2]
[369803392,1751728261527,-460.0,0.00021095,2]
[369803393,1751728261539,-460.0,0.00021095,2]
[369803394,1751728261548,-460.0,0.00021095,2]
[369803395,1751728261558,-461.08862586,0.00021095,2]
[369803396,1751728261567,-234.02326562,0.00021095,2]
[369803397,1751728261577,-605.44,0.00021095,2]
[369803398,1751728261586,-460.0,0.00021095,2]
[369803399,1751728261596,-477.38,0.00021095,2]
[369803400,1751728261607,-160.42,0.00021095,2]
[369803401,1751728261616,-460.0,0.00021095,2]
[369803402,1751728261626,-460.0,0.00021095,2]
[369803403,1751728261635,-460.0,0.00021095,2]
[369803404,1751728261644,-602.41,0.00021095,2]
[369803405,1751728261653,-1746.47,0.00021095,2]
[369803406,1751728261663,-460.0,0.00021095,2]
[369803407,1751728261672,-460.0,0.00021095,2]
[369803408,1751728261682,-460.0,0.00021095,2]
[369803409,1751728261692,-1036.02,0.00021095,2]
[369803410,1751728261701,-662.47,0.00021095,2]
[369803411,1751728261711,-460.0,0.00021095,2]
[369803412,1751728261721,-3267.76,0.00021095,2]
[369803413,1751728261730,-2133.56,0.00021095,2]
[369803414,1751728261740,-3079.9,0.00021095,2]
[369803415,1751728261749,-360.50518996,0.00021095,2]
[369803416,1751728261760,-736.05,0.00021095,2]
[369803417,1751728261769,-2623.93,0.00021095,2]
[369803418,1751728261778,-460.0,0.00021095,2]
[369803419,1751728261788,-460.0,0.00021095,2]
[369803420,1751728261798,-5899.19,0.00021095,2]
[369803421,1751728261808,-1275.43,0.00021095,2]
[369803422,1751728261818,-1685.45,0.00021095,2]
[369803423,1751728261827,-460.0,0.00021095,2]
[369803424,1751728261836,-284.81753594,0.00021095,2]
[369803425,1751728261845,-522.4,0.00021095,2]
[369803426,1751728261855,-604.25,0.00021095,2]
[369803427,1751728261864,-460.0,0.00021095,2]
[369803428,1751728261873,-493.35,0.00021095,2]
[369803429,1751728262026,-460.0,0.00021095,2]
[369803430,1751728262036,-3741.90095519,0.00021095,2]
[369803431,1751728262367,-373.71168579,0.00019178,2]
[369803432,1751728621063,250.572368,0.00013699,2]
[369803472,1751729432867,-345.5146,0.000176,2]
[369803473,1751729432877,-300.0,0.00018032,2]
[369803474,1751729432886,-300.0,0.00018032,2]
[369803475,1751729432896,-429.03435414,0.00018033,2]
[369803476,1751729432908,-408.54000481,0.00018033,2]
[369803477,1751729432919,-264.33264962,0.00018033,2]
[369803478,1751729432931,-496.3820416,0.00018033,2]
[369803479,1751729432942,-642.48698189,0.00018033,2]
[369803511,1751729438713,-2418.19999998,0.00018033,2]
[369803513,1751729438724,-10438.0,0.00018033,2]
[369803515,1751729438736,-3319.21875025,0.00018033,2]
[369803528,1751729438852,-6483.80521771,0.00018033,2]
[369803530,1751729438862,-986.36657241,0.000189,2]
[369803532,1751729438872,-185.95365553,0.00019078,2]
[369803534,1751729438882,-207.4,0.00019166,2]
[369803536,1751729438892,-750.52,0.00019168,3]
[369803538,1751729438901,-375.26,0.00019168,3]
[369803540,1751729438911,-187.63,0.00019168,3]
[369803542,1751729438921,-562.94,0.00019168,3]
[369803544,1751729438930,-460.0,0.00019178,2]
[369803546,1751729438940,-460.0,0.00019178,2]
[369803548,1751729438949,-151.0,0.00019178,2]
[369803550,1751729438959,-460.0,0.00019178,2]
[369803553,1751729438969,-395.81107508,0.00019178,2]
[369803556,1751729438978,-460.0,0.00019178,2]
[369803560,1751729438988,-581.71919431,0.00019178,2]
[369803562,1751729438997,-482.96951179,0.00019178,2]
[369803564,1751729439008,-460.0,0.00019178,2]
[369803566,1751729439018,-460.0,0.00019178,2]
[369803568,1751729439028,-460.0,0.00019178,2]
[369803570,1751729439037,-460.0,0.00019178,2]
[369803572,1751729439047,-460.0,0.00019178,2]
[369803574,1751729439057,-549.4363896,0.00019178,2]
[369803576,1751729439066,-460.0,0.00019178,2]
[369803578,1751729439075,-500.0,0.00019178,2]
[369803580,1751729439084,-500.0,0.00019178,2]
[369803582,1751729439094,-500.0,0.00019178,2]
[369803584,1751729439104,-500.0,0.00019178,2]
[369803586,1751729439116,-500.0,0.00019178,2]
[369803589,1751729439126,-500.0,0.00019178,2]
[369803590,1751729439136,-500.0,0.00019178,2]
[369803593,1751729439147,-500.0,0.00019178,2]
[369803594,1751729439157,-500.0,0.00019178,2]
[369803596,1751729439167,-500.0,0.00019178,2]
[369803599,1751729439177,-500.0,0.00019178,2]
[369803601,1751729439187,-500.0,0.00019178,2]
[369803603,1751729439197,-500.0,0.00019178,2]
[369803605,1751729439207,-500.0,0.00019178,2]
[369803607,1751729439216,-500.0,0.00019178,2]
[369803609,1751729439225,-500.0,0.00019178,2]
[369803611,1751729439235,-460.0,0.00019178,2]
[369803613,1751729439246,-463.91833902,0.00019178,2]
[369803615,1751729439255,-500.0,0.00019178,2]
[369803617,1751729439264,-500.0,0.00019178,2]
[369803619,1751729439274,-500.0,0.00019178,2]
[369803621,1751729439284,-500.0,0.00019178,2]
[369803623,1751729439293,-500.0,0.00019178,2]
[369803624,1751729439302,-400.00000162,0.00019178,2]
[369803626,1751729439312,-499.99999999,0.00019178,2]
[369803628,1751729439321,-460.0,0.00019178,2]
[369803630,1751729439330,-460.0,0.00019178,2]
[369803632,1751729439339,-460.0,0.00019178,2]
[369803635,1751729439349,-460.0,0.00019178,2]
[369803637,1751729439359,-570.16290991,0.00019178,2]
[369803639,1751729439369,-232.49,0.00019178,2]